bitfinex/quotes_ETHUSD_20240822
["timestamp","ask_amount","ask_price","bid_price","bid_amount"]
[1724363246391,6.25083,2627.2,2626.7,3.80701]
[1724363246995,1.14,2627.3,2626.7,3.80701]
[1724363246996,2.294,2627.1,2626.7,3.80701]
[1724363247174,2.294,2627.3,2626.9,3.80674]
[1724363247379,3.80492,2628.2,2627.2,3.80633]
[1724363247579,3.80492,2628.2,2627.6,3.80564]
[1724363247580,6.09898,2628.2,2627.6,3.80564]
[1724363247779,6.09898,2628.2,2627.9,3.80524]
[1724363247780,2.294,2628.2,2627.9,3.80524]
[1724363248101,7.23838,2628.6,2628.0,7.61015]
[1724363248274,7.23838,2628.6,2628.1,3.805]
[1724363249275,7.23838,2628.6,2628.0,3.80514]
[1724363249276,11.04277,2628.6,2628.0,3.80514]
[1724363249457,7.23838,2628.6,2628.0,3.80514]
[1724363249993,7.23838,2628.6,2628.1,3.80501]
[1724363250551,7.23838,2628.6,2628.1,7.60992]
[1724363251276,3.434,2628.6,2628.2,3.80487]
[1724363251561,3.434,2628.6,2628.2,3.79612584]
[1724363253705,2.294,2628.6,2627.9,8.5]
[1724363253906,1.14,2628.7,2628.4,7.609]
[1724363254335,3.4417,2628.9,2628.5,3.80444]
[1724363257821,0.04673905,2628.8,2628.5,3.80444]
[1724363269163,0.04673905,2628.8,2628.6,3.8043]
[1724363269375,2.4042,2628.7,2628.5,3.80436]
[1724363269580,2.4042,2628.7,2628.4,3.80459]
[1724363269735,2.45204475,2628.7,2628.4,3.80459]
[1724363274581,3.19163623,2628.7,2628.4,3.80459]
[1724363274878,4.33163623,2628.7,2628.3,3.80471]
[1724363275046,8.13586623,2628.7,2628.2,11.16485]
[1724363275475,8.08802148,2628.7,2628.2,11.16485]
[1724363275681,0.04777611,2628.6,2628.5,3.80445]
[1724363276057,2.4016,2628.8,2628.5,3.80445]
[1724363276391,0.04777611,2628.6,2628.5,3.80445]
[1724363276691,0.04767315,2628.7,2628.5,3.80445]
[1724363276984,2.4016,2628.8,2628.5,3.80445]
[1724363277134,0.04767315,2628.6,2628.5,3.80445]
[1724363277537,2.4016,2628.8,2628.5,3.80445]
[1724363277812,0.04773493,2628.6,2628.5,7.6089]
[1724363277979,2.4016,2628.8,2628.6,3.80429]
[1724363278280,0.04773493,2628.7,2628.6,3.80429]
[1724363278483,2.4016,2628.8,2628.6,3.80429]
[1724363278684,0.04773493,2628.7,2628.6,3.80429]
[1724363279179,2.4016,2628.8,2628.6,3.80429]
[1724363279368,0.04773493,2628.7,2628.6,3.80429]
[1724363279733,2.4016,2628.8,2628.6,3.80429]
[1724363280084,0.04773493,2628.7,2628.6,3.80429]
[1724363280484,1.14,2628.9,2628.6,3.80429]
[1724363280636,0.04773493,2628.7,2628.6,3.80429]
[1724363280976,1.14,2628.9,2628.6,3.80429]
[1724363281176,0.04773493,2628.7,2628.6,3.80429]
[1724363281378,1.14,2628.9,2628.6,3.80429]
[1724363281541,0.04773493,2628.7,2628.6,3.80429]
[1724363281874,1.14,2628.9,2628.6,3.80429]
[1724363282051,0.04773493,2628.8,2628.6,3.80429]
[1724363284677,0.04773493,2628.8,2628.7,3.80416]
[1724363286086,2.2889,2629.0,2628.8,3.80401]
[1724363286268,0.04773493,2628.9,2628.8,7.60795]
[1724363286467,0.04773493,2628.9,2628.8,3.80394]
[1724363289190,0.04773493,2628.9,2628.8,7.60795]
[1724363292488,0.04773493,2628.9,2628.8,3.80394]
[1724363295816,0.04773493,2628.9,2628.6,3.80419]
[1724363296123,0.04773493,2628.9,2628.4,7.60895]
[1724363296278,0.04773493,2628.9,2628.4,3.80445]
[1724363296601,0.04773493,2628.9,2628.5,3.80434]
[1724363297002,2.3905,2628.8,2628.5,3.80445]
[1724363297317,0.04777609,2628.7,2628.5,3.80445]
[1724363297694,2.3905,2628.8,2628.5,3.80445]
[1724363298009,0.04777609,2628.7,2628.5,3.80445]
[1724363298390,2.3905,2628.8,2628.5,3.80445]
[1724363298584,0.04777609,2628.6,2628.5,3.80445]
[1724363298818,2.3905,2628.8,2628.5,3.80445]
[1724363299022,0.04777609,2628.6,2628.5,3.80445]
[1724363299248,2.3905,2628.8,2628.5,3.80445]
[1724363299398,0.04777609,2628.6,2628.4,3.80445]
[1724363299607,2.3905,2628.8,2628.4,3.80445]
[1724363299935,2.3905,2628.5,2628.4,3.80445]
[1724363300534,2.43827609,2628.5,2628.4,3.80445]
[1724363301243,2.43827609,2628.5,2628.2,11.16478]
[1724363301545,2.43827609,2628.5,2628.3,3.80471]
[1724363303239,2.43827609,2628.5,2628.4,3.80459]
[1724363312629,2.43827609,2628.5,2628.2,3.80478]
[1724363312630,2.43827609,2628.5,2628.3,3.80474]
[1724363312796,3.9361037,2628.5,2628.2,3.80478]
[1724363313010,2.465,2628.4,2627.9,7.36]
[1724363313333,2.465,2628.2,2628.0,3.80517]
[1724363313542,0.04757018,2628.1,2628.0,3.80517]
[1724363313703,0.04757018,2628.1,2627.8,3.80535]
[1724363313906,2.4203,2628.0,2627.7,3.8056]
[1724363314108,2.4203,2628.0,2627.6,7.36]
[1724363314109,2.4203,2627.8,2627.5,3.80588]
[1724363314352,0.04746034,2627.7,2627.5,3.80588]
[1724363314714,2.4203,2627.8,2627.5,3.80588]
[1724363316502,2.4203,2627.8,2627.4,3.80603]
[1724363316716,2.4203,2627.8,2627.2,11.16629]
[1724363316717,7.47401034,2627.7,2627.2,11.16629]
[1724363316923,2.4809,2627.6,2627.2,11.16629]
[1724363317336,0.04746034,2627.5,2627.2,11.16629]
[1724363317545,2.4809,2627.4,2627.2,7.36]
[1724363318074,0.04746034,2627.3,2627.2,7.36]
[1724363320120,2.46256034,2627.3,2627.2,7.36]
[1724363320976,2.46256034,2627.3,2627.1,3.80645]
[1724363321374,2.4151,2627.3,2627.0,3.80662]
[1724363321725,0.04746034,2627.2,2627.0,3.80662]
[1724363321926,2.4151,2627.3,2627.0,3.80662]
[1724363322235,0.04746034,2627.2,2626.8,3.80679]
[1724363322576,2.4151,2627.3,2626.9,3.80675]
[1724363322774,0.04746034,2627.1,2626.9,3.80675]
[1724363322931,2.4151,2627.3,2626.9,3.80675]
[1724363323130,0.04746034,2627.2,2626.9,3.80675]
[1724363323361,2.4151,2627.3,2626.9,3.80675]
[1724363323576,2.4151,2627.0,2626.9,3.80675]
[1724363323961,2.46256034,2627.0,2626.9,3.80675]
[1724363324274,2.46256034,2627.0,2626.8,3.80678]
[1724363324461,2.46256034,2627.0,2626.8,7.6136]
[1724363325328,2.46256034,2627.0,2626.8,3.80678]
[1724363327330,2.46256034,2627.0,2626.6,7.61417]
[1724363328294,2.46256034,2627.0,2626.7,3.80702]
[1724363329595,2.46256034,2627.0,2626.6,3.80707]
[1724363330718,2.46256034,2627.0,2626.6,7.6142]
[1724363332797,2.46256034,2627.0,2626.7,3.80705]
[1724363335220,0.04746034,2627.0,2626.9,7.61352]
[1724363335422,0.04746034,2627.0,2626.9,18.81554]
[1724363335627,3.4767,2628.0,2627.8,3.80545]
[1724363336148,0.04402563,2627.9,2627.8,3.80545]
[1724363336990,0.04402563,2627.9,2627.7,3.8056]
[1724363338505,0.04271776,2627.9,2627.7,3.8056]
[1724363340734,0.04271776,2627.9,2627.5,3.80576]
[1724363340917,0.04271776,2627.9,2627.4,3.88204242]
[1724363340918,0.04271776,2627.9,2627.6,3.80572]
[1724363343646,2.3093,2627.8,2627.4,4.55298424]
[1724363343799,2.3093,2627.8,2627.4,3.80593]
[1724363344002,0.04398204,2627.7,2627.4,3.80593]
[1724363344232,0.04398204,2627.7,2627.4,7.61189]
[1724363344453,2.3093,2627.8,2627.4,3.80593]
[1724363344621,0.04398204,2627.6,2627.4,3.80593]
[1724363344824,2.3093,2627.8,2627.4,8.373106]
[1724363345152,2.3093,2627.8,2627.4,4.567146]
[1724363345333,0.04398204,2627.7,2627.4,4.567146]
[1724363345540,2.3093,2627.8,2627.4,4.567146]
[1724363345904,0.04398204,2627.7,2627.4,4.567146]
[1724363346256,2.3093,2627.8,2627.4,4.567146]
[1724363346770,0.04398204,2627.7,2627.4,4.567146]
[1724363347128,2.3093,2627.8,2627.5,0.4567146]
[1724363347332,0.04398204,2627.7,2627.5,0.4567146]
[1724363347580,2.3093,2627.8,2627.4,4.567146]
[1724363347778,0.04398204,2627.6,2627.4,4.567146]
[1724363348097,2.3093,2627.8,2627.4,4.567146]
[1724363348242,0.04398204,2627.5,2627.4,4.567146]
[1724363348583,2.3093,2627.8,2627.4,4.567146]
[1724363348750,0.04398204,2627.5,2627.4,4.567146]
[1724363348947,2.3093,2627.8,2627.4,4.567146]
[1724363349167,0.04398204,2627.7,2627.4,4.567146]
[1724363349330,2.3093,2627.8,2627.4,4.567146]
[1724363349681,0.04398204,2627.7,2627.5,0.4567146]
[1724363350025,2.3093,2627.8,2627.5,0.4567146]
[1724363350273,0.04398204,2627.6,2627.5,0.4567146]
[1724363350430,2.3093,2627.8,2627.5,0.4567146]
[1724363350646,0.04436714,2627.7,2627.4,3.80593]
[1724363351062,6.13904,2627.9,2627.4,3.80593]
[1724363351268,0.04436714,2627.6,2627.4,3.80593]
[1724363351481,6.13904,2627.9,2627.5,0.380593]
[1724363353074,2.3337,2627.8,2627.4,3.80593]
[1724363354867,2.3337,2627.8,2627.5,3.80583]
[1724363362742,2.2629,2628.1,2627.7,3.8056]
[1724363362924,2.2629,2628.1,2627.7,4.566743]
[1724363363833,6.06794,2628.1,2627.7,4.566743]
[1724363365489,3.80377,2629.0,2627.7,4.566743]
[1724363365490,2.4175,2629.9,2628.2,2.2798]
[1724363365713,2.4175,2629.9,2628.0,1.14]
[1724363365714,3.91,2629.6,2629.3,1.14]
[1724363365910,2.4175,2630.5,2629.8,3.80252]
[1724363365911,1.14,2630.4,2629.8,3.80252]
[1724363366116,1.14,2630.2,2629.7,3.80261]
[1724363366667,1.14,2630.2,2629.5,3.80289]
[1724363366875,1.14,2630.2,2629.6,3.80285]
[1724363367174,1.14,2630.2,2629.5,3.80289]
[1724363367464,1.14,2630.2,2629.5,7.60579]
[1724363367627,1.14,2630.2,2629.6,3.80285]
[1724363368024,1.14,2630.2,2629.7,3.8027]
[1724363368420,10.02074,2630.5,2629.7,3.8027]
[1724363368757,0.55,2630.4,2629.8,3.80256]
[1724363369759,0.55,2630.4,2629.9,3.80237]
[1724363370532,0.55,2630.4,2629.9,7.60474]
[1724363371233,0.55,2630.4,2629.9,3.80237]
[1724363371433,0.55,2630.4,2629.9,7.6047]
[1724363371665,0.55,2630.4,2630.0,3.80227]
[1724363373972,0.55,2630.4,2629.9,3.80233]
[1724363375372,0.55,2630.4,2629.9,7.60467]
[1724363375783,0.55,2630.4,2629.9,3.80233]
[1724363376652,0.55,2630.4,2629.9,7.60466]
[1724363376852,0.55,2630.4,2630.0,3.80227]
[1724363377053,0.55,2630.4,2629.9,3.80233]
[1724363377485,2.3083,2630.3,2629.9,3.80233]
[1724363377841,0.04358129,2630.2,2629.9,3.80233]
[1724363378242,2.3083,2630.3,2629.9,3.80233]
[1724363378446,0.04358129,2630.1,2629.9,3.80233]
[1724363378648,2.3083,2630.3,2629.9,3.80233]
[1724363378838,0.04358129,2630.0,2629.9,3.80233]
[1724363379041,2.3083,2630.3,2629.9,3.80233]
[1724363379357,2.3083,2630.3,2629.9,7.60467]
[1724363379561,0.04358129,2630.2,2629.9,7.60467]
[1724363379885,2.3083,2630.3,2629.9,7.60467]
[1724363380091,2.3083,2630.3,2629.9,7.60468]
[1724363380092,0.04358129,2630.1,2629.9,7.60468]
[1724363380248,2.3083,2630.3,2630.0,3.80228]
[1724363384702,2.3083,2630.3,2630.0,3.80218]
[1724363384905,2.3083,2630.3,2630.0,3.8022]
[1724363385304,2.15791958,2630.3,2630.0,7.60441]
[1724363385696,2.15791958,2630.3,2630.0,3.8022]
[1724363388423,2.80886754,2630.3,2630.0,3.8022]
[1724363388609,2.3101,2630.2,2630.0,3.8022]
[1724363390346,2.3101,2630.2,2630.1,3.80213]
[1724363390853,2.3101,2630.2,2630.0,7.60438]
[1724363391152,2.3101,2630.2,2630.0,3.80218]
[1724363392053,2.3101,2630.2,2630.0,7.60437]
[1724363392462,2.3101,2630.2,2630.0,3.80218]
[1724363392964,0.04356065,2630.1,2630.0,3.80218]
[1724363406426,0.04356065,2630.1,2630.0,7.60446]
[1724363406607,0.04356065,2630.1,2630.0,8.364906]
[1724363406778,2.4171,2630.5,2630.4,3.8017]
[1724363407827,2.46069503,2630.5,2630.4,3.8017]
[1724363408403,2.46069503,2630.5,2630.3,3.80183]
[1724363417007,2.46069503,2630.5,2630.2,3.80197]
[1724363428931,2.46069503,2630.5,2630.1,3.80212]
[1724363429557,2.46069503,2630.5,2630.1,7.60418]
[1724363431475,2.46069503,2630.5,2630.2,3.80197]
[1724363431958,2.49106795,2630.5,2630.2,3.80197]
[1724363432716,2.49106795,2630.5,2630.1,3.80211]
[1724363433141,2.49106795,2630.5,2630.1,7.60417]
[1724363433357,2.49106795,2630.5,2630.1,3.80206]
[1724363441259,3.87553795,2630.5,2630.1,3.80206]
[1724363441520,2.4709,2630.4,2630.1,3.80206]
[1724363442130,0.07406435,2630.3,2630.1,3.80206]
[1724363455394,2.4917,2630.2,2630.1,3.80206]
[1724363455743,2.56601214,2630.2,2630.1,3.80206]
[1724363455908,2.56601214,2630.2,2629.9,3.80231]
[1724363456526,2.56601214,2630.2,2629.7,3.80258]
[1724363456706,2.56601214,2630.2,2629.8,3.80249]
[1724363457897,3.20280435,2630.2,2629.7,3.80258]
[1724363458103,3.20280435,2630.2,2629.6,1.138]
[1724363458294,3.20280435,2630.2,2629.8,3.80255]
[1724363458490,2.453,2630.1,2629.8,3.80255]
[1724363458794,0.07430526,2630.0,2629.8,3.80255]
[1724363463963,0.07430526,2630.0,2629.8,7.60505]
[1724363464549,0.07430526,2630.0,2629.8,3.8025]
[1724363464783,0.07430526,2630.0,2629.8,3.80247]
[1724363465170,2.3003,2629.9,2629.8,3.80247]
[1724363465463,2.37450202,2629.9,2629.8,3.80247]
[1724363469482,0.07420202,2629.9,2629.8,3.80247]
[1724363469986,2.4925,2630.1,2629.8,3.80247]
[1724363470187,0.07420202,2629.9,2629.8,3.80247]
[1724363470403,2.4925,2630.1,2629.8,3.80247]
[1724363470540,0.07420202,2629.9,2629.8,3.80247]
[1724363470734,2.4925,2630.1,2629.8,3.80247]
[1724363471045,2.4925,2630.1,2629.8,7.60494]
[1724363471249,0.07420202,2630.0,2629.8,7.60494]
[1724363473334,0.07420202,2630.0,2629.8,3.80247]
[1724363482381,0.07420202,2630.0,2629.7,3.80271]
[1724363482581,2.4925,2630.1,2629.7,3.80264]
[1724363482782,0.07383717,2629.9,2629.7,3.80264]
[1724363483016,3.80213,2630.1,2629.7,3.80264]
[1724363483304,2.2601,2630.0,2629.6,3.8028]
[1724363483473,0.07383717,2629.9,2629.6,3.8028]
[1724363483676,0.07383717,2629.9,2629.5,3.80288]
[1724363484766,0.07383717,2629.9,2629.6,3.80284]
[1724363486508,0.07383717,2629.9,2629.5,3.80288]
[1724363487402,2.4689,2629.8,2629.5,3.80288]
[1724363487969,0.07383717,2629.7,2629.5,3.80288]
[1724363488314,2.4689,2629.8,2629.5,3.80288]
[1724363488630,0.07383717,2629.7,2629.5,3.80288]
[1724363488996,2.4689,2629.8,2629.5,3.80288]
[1724363489199,0.07383717,2629.6,2629.5,3.80288]
[1724363489362,2.4689,2629.8,2629.5,3.80288]
[1724363489570,0.07383717,2629.6,2629.5,3.80288]
[1724363490216,0.97755075,2629.8,2629.5,3.80288]
[1724363490365,0.07383717,2629.6,2629.5,3.80288]
[1724363490568,0.97755075,2629.8,2629.5,3.80288]
[1724363490762,0.07383717,2629.6,2629.5,3.80288]
[1724363491016,0.97755075,2629.8,2629.5,3.80288]
[1724363491217,0.07383717,2629.6,2629.5,3.80288]
[1724363491365,0.97755075,2629.8,2629.5,3.80288]
[1724363491565,0.07383717,2629.6,2629.5,3.80288]
[1724363491763,0.97755075,2629.8,2629.5,3.80288]
[1724363492012,0.07383717,2629.6,2629.5,3.80288]
[1724363492218,0.97755075,2629.8,2629.5,3.80288]
[1724363492421,0.07383717,2629.6,2629.5,3.80288]
[1724363493009,0.97755075,2629.8,2629.5,3.80288]
[1724363493331,3.80234,2630.0,2629.5,3.80291]
[1724363493470,0.07383717,2629.7,2629.5,3.80291]
[1724363493832,3.80215,2630.1,2629.6,3.80285]
[1724363494125,3.80215,2630.1,2629.6,4.425855]
[1724363494327,3.80215,2630.1,2629.6,3.80278]
[1724363494619,3.4179,2630.2,2629.6,3.80277]
[1724363494925,3.80214,2630.1,2629.5,3.80286]
[1724363495113,3.80214,2630.1,2629.6,3.80282]
[1724363495281,7.60436,2630.1,2629.6,3.80282]
[1724363495614,3.80214,2630.1,2629.6,3.80282]
[1724363495820,7.60437,2630.1,2629.6,3.80282]
[1724363496028,3.80214,2630.1,2629.6,7.60559]
[1724363496171,3.80214,2630.1,2629.6,7.60554]
[1724363497543,3.80214,2630.1,2629.6,8.6825716]
[1724363497743,0.07374077,2630.0,2629.6,2.2956]
[1724363497900,0.07374077,2630.0,2629.6,6.09845]
[1724363498096,6.27786,2630.2,2629.7,3.80264]
[1724363498347,0.07374077,2630.1,2629.7,4.792749]
[1724363498763,3.87590077,2630.1,2629.7,0.990109]
[1724363503598,6.22829,2630.0,2629.5,3.803]
[1724363503819,6.22829,2630.0,2629.5,3.80288]
[1724363504024,6.22829,2630.0,2629.5,7.60579]
[1724363504025,0.07374077,2629.9,2629.5,7.60579]
[1724363504266,0.07374077,2629.9,2629.5,4.677259]
[1724363505276,3.87617077,2629.9,2629.5,0.874379]
[1724363505420,0.07374077,2629.9,2629.5,4.677349]
[1724363507367,0.07374077,2629.9,2629.5,8.480319]
[1724363507577,0.07374077,2629.9,2629.5,4.677289]
[1724363507930,0.07374077,2629.9,2629.5,8.480209]
[1724363508589,3.87619077,2629.9,2629.2,2.4195]
[1724363508927,3.87619077,2629.9,2629.4,3.80307]
[1724363511653,2.333,2629.8,2629.4,3.80307]
[1724363511859,0.07378897,2629.7,2629.4,3.80307]
[1724363512074,2.333,2629.8,2629.4,4.677495]
[1724363512276,0.07378897,2629.7,2629.4,4.677495]
[1724363512444,2.333,2629.8,2629.4,4.677495]
[1724363512644,0.07378897,2629.7,2629.4,4.677495]
[1724363512843,2.333,2629.8,2629.4,4.677495]
[1724363513045,0.07378897,2629.7,2629.4,4.677495]
[1724363513274,2.333,2629.8,2629.4,4.677495]
[1724363513455,0.07378897,2629.6,2629.4,4.677495]
[1724363513786,2.333,2629.8,2629.4,4.677495]
[1724363514289,0.07378897,2629.7,2629.4,4.677495]
[1724363514591,2.333,2629.8,2629.4,4.677495]
[1724363515042,0.07374764,2629.7,2629.4,4.677495]
[1724363515443,0.07374764,2629.6,2629.4,6.989795]
[1724363515744,3.80245,2629.9,2629.4,6.989795]
[1724363515945,0.07374764,2629.5,2629.4,4.677495]
[1724363516610,3.80245,2629.9,2629.4,4.677495]
[1724363517079,0.07374764,2629.8,2629.4,4.677495]
[1724363519381,0.07374764,2629.8,2629.5,0.8480675]
[1724363520228,0.07374764,2629.8,2629.4,3.80307]
[1724363522027,3.87633764,2629.8,2629.4,3.80307]
[1724363524087,3.80272,2629.7,2629.2,6.1156]
[1724363524287,2.3107,2629.7,2629.2,3.8033]
[1724363524622,2.3107,2629.7,2629.2,5.49284008]
[1724363524623,0.07374764,2629.6,2629.2,5.49284008]
[1724363524920,2.3107,2629.7,2629.2,5.49284008]
[1724363525476,6.11351,2629.7,2629.2,5.49284008]
[1724363525691,0.07374764,2629.6,2629.2,5.49284008]
[1724363526299,0.07374764,2629.6,2629.2,3.8033]
[1724363526723,3.87661764,2629.6,2629.2,3.8033]
[1724363528544,0.07374764,2629.6,2629.2,3.8033]
[1724363531633,2.4199,2629.5,2629.2,3.8033]
[1724363531932,0.07366504,2629.4,2629.2,3.8033]
[1724363532630,0.07366504,2629.4,2629.0,4.94163]
[1724363532631,0.07366504,2629.4,2629.1,3.80357]
[1724363532830,0.07366504,2629.4,2629.1,0.56172257]
[1724363532996,0.07366504,2629.4,2629.0,3.80363]
[1724363533812,0.07366504,2629.4,2629.0,7.60728]
[1724363534134,0.07366504,2629.4,2629.1,3.80357]
[1724363535352,0.07366504,2629.4,2629.0,3.80363]
[1724363535518,0.07366504,2629.4,2629.0,7.60725]
[1724363535719,0.07366504,2629.4,2629.1,1.113305]
[1724363537246,2.4309,2629.3,2629.0,7.60725]
[1724363537832,0.07366504,2629.2,2629.0,7.60725]
[1724363538355,0.07366504,2629.1,2629.0,7.60725]
[1724363538561,2.4309,2629.3,2629.0,7.60725]
[1724363538708,0.07366504,2629.1,2629.0,4.60272806]
[1724363539097,2.4309,2629.3,2629.0,4.60272806]
[1724363539254,0.07366504,2629.1,2629.0,4.60272806]
[1724363539461,2.4309,2629.3,2629.0,4.60272806]
[1724363539812,0.07360304,2629.2,2629.0,4.60272806]
[1724363540163,2.4309,2629.3,2629.0,4.60272806]
[1724363540341,0.07360304,2629.2,2629.0,4.60272806]
[1724363540507,2.4309,2629.3,2629.0,4.60272806]
[1724363540708,0.07360304,2629.2,2629.0,4.60272806]
[1724363540908,2.4309,2629.3,2629.1,3.80357]
[1724363541108,0.07360304,2629.2,2629.1,3.80357]
[1724363541327,2.4309,2629.3,2629.1,3.80357]
[1724363541621,0.07360304,2629.2,2629.1,3.80357]
[1724363542071,2.4309,2629.3,2629.1,3.80357]
[1724363542273,0.07360304,2629.2,2629.1,3.80357]
[1724363542685,2.4309,2629.3,2629.1,3.80357]
[1724363542856,0.07360304,2629.2,2629.1,3.80357]
[1724363543239,2.4309,2629.3,2629.1,3.80357]
[1724363543476,0.07360304,2629.2,2629.1,3.80357]
[1724363544266,2.4309,2629.3,2629.1,3.80357]
[1724363544443,0.07360304,2629.2,2629.1,3.80357]
[1724363544851,2.4309,2629.3,2629.1,3.80357]
[1724363545079,0.07360304,2629.2,2629.1,3.80357]
[1724363545375,2.4309,2629.3,2629.1,3.80357]
[1724363545581,0.07360304,2629.2,2629.1,3.80357]
[1724363546072,2.4309,2629.3,2629.1,3.80357]
[1724363546278,0.07360304,2629.2,2629.1,3.80357]
[1724363546890,2.4309,2629.3,2629.1,3.80357]
[1724363547202,0.07341024,2629.2,2629.1,3.80357]
[1724363547603,2.4309,2629.3,2629.1,3.80357]
[1724363547964,0.07341024,2629.2,2629.1,3.80357]
[1724363548163,2.4309,2629.3,2629.1,3.80357]
[1724363548410,0.07341024,2629.2,2629.1,3.80357]
[1724363548796,2.4309,2629.3,2629.1,3.80357]
[1724363548983,0.07341024,2629.2,2629.1,3.80357]
[1724363549381,2.4309,2629.3,2629.1,3.80357]
[1724363549577,0.07341024,2629.2,2628.9,8.74561]
[1724363549782,0.07341024,2629.2,2628.9,5.63435837]
[1724363549983,2.4309,2629.3,2628.9,5.63435837]
[1724363550286,6.16622,2629.5,2629.0,3.80365]
[1724363550485,0.07333448,2629.4,2629.0,4.74745084]
[1724363550689,0.07333448,2629.4,2629.0,3.80365]
[1724363557995,3.87648448,2629.4,2629.0,3.80365]
[1724363559474,3.87648448,2629.4,2628.9,4.27450837]
[1724363559835,3.87648448,2629.4,2628.9,8.07833837]
[1724363562132,3.87648448,2629.4,2628.9,6.94033837]
[1724363562483,3.87648448,2629.4,2629.0,3.80371]
[1724363567251,2.428,2629.3,2629.0,3.80371]
[1724363567456,2.428,2629.3,2628.9,3.80386]
[1724363567656,0.07083593,2629.2,2628.9,4.910564]
[1724363568177,0.07083593,2629.1,2628.9,4.910564]
[1724363568674,2.428,2629.3,2628.9,4.910564]
[1724363569255,0.07083593,2629.2,2628.9,4.910564]
[1724363569582,2.428,2629.3,2628.9,4.910564]
[1724363569917,0.07083593,2629.2,2628.9,4.910564]
[1724363570261,0.07083593,2629.1,2628.9,4.910564]
[1724363570469,2.428,2629.3,2628.9,4.910564]
[1724363570811,0.07083593,2629.2,2628.9,4.910564]
[1724363571166,6.2313,2629.3,2628.9,4.910564]
[1724363571371,0.07083593,2629.2,2628.9,1.106704]
[1724363571584,6.2313,2629.3,2628.9,1.106704]
[1724363571782,0.07083593,2629.2,2628.9,4.910554]
[1724363572016,6.2313,2629.3,2628.9,1.106704]
[1724363572309,0.07083593,2629.1,2628.9,4.910534]
[1724363572480,0.07083593,2629.0,2628.9,4.910534]
[1724363573100,6.2313,2629.3,2628.9,4.910534]
[1724363573335,0.07083593,2629.2,2628.9,4.910534]
[1724363573641,6.2313,2629.3,2628.9,4.910534]
[1724363573797,0.07083593,2629.1,2628.9,4.910534]
[1724363573997,6.2313,2629.3,2628.9,4.910534]
[1724363574200,0.07083593,2629.0,2628.9,4.910534]
[1724363574398,6.2313,2629.3,2628.9,4.910534]
[1724363574643,0.07083593,2629.0,2628.9,4.910534]
[1724363574831,6.2313,2629.3,2628.9,4.910534]
[1724363575009,0.07083593,2629.0,2628.9,4.910534]
[1724363575195,6.2313,2629.3,2628.9,4.910534]
[1724363575398,0.07083593,2629.0,2628.9,4.910534]
[1724363575594,6.2313,2629.3,2628.9,4.910534]
[1724363575798,0.07083593,2629.0,2628.9,4.910534]
[1724363576298,6.2313,2629.3,2628.9,4.910534]
[1724363576648,0.07083593,2629.2,2628.9,4.910534]
[1724363577034,6.2313,2629.3,2628.9,4.910534]
[1724363577199,0.07083593,2629.1,2628.9,4.910534]
[1724363577558,6.2313,2629.3,2629.0,0.8714414]
[1724363577712,6.2313,2629.3,2628.9,4.910534]
[1724363578246,6.2313,2629.3,2628.9,1.106704]
[1724363578457,6.2313,2629.3,2628.9,3.80382]
[1724363578944,10.03467,2629.3,2628.7,1.92847083]
[1724363579154,6.2313,2629.3,2628.8,7.1111524]
[1724363579320,6.2313,2629.3,2628.8,3.80401]
[1724363579520,3.80345,2629.2,2628.7,4.94215]
[1724363579842,2.3354,2629.1,2628.8,1.32287289]
[1724363580004,2.3354,2629.1,2628.6,4.59465083]
[1724363580204,2.3354,2629.1,2628.7,7.11135403]
[1724363580431,2.3354,2629.1,2628.8,1.32290561]
[1724363580751,6.13898,2629.1,2628.7,3.80409]
[1724363581407,2.4935,2629.0,2628.7,3.80409]
[1724363584414,2.4935,2629.0,2628.8,3.804]
[1724363584758,2.4935,2629.0,2628.6,3.80429]
[1724363586230,2.4935,2629.0,2628.7,1.32294687]
[1724363586556,2.4935,2629.0,2628.6,3.80429]
[1724363587753,0.0706911,2628.9,2628.6,3.80429]
[1724363589983,0.0706911,2628.9,2628.5,7.6087]
[1724363590187,0.0706911,2628.9,2628.6,5.12721334]
[1724363590481,0.0706911,2628.9,2628.6,3.80423]
[1724363590836,2.4318,2628.8,2628.6,3.80423]
[1724363591474,0.0706911,2628.7,2628.6,3.80423]
[1724363591829,2.3385,2629.0,2628.6,3.80423]
[1724363591981,0.0706911,2628.7,2628.6,3.80423]
[1724363592138,2.3385,2629.0,2628.6,3.80423]
[1724363592337,0.0706911,2628.9,2628.6,3.80423]
[1724363593088,2.4635,2628.8,2628.6,3.80423]
[1724363593786,0.0706911,2628.7,2628.6,3.80423]
[1724363594084,2.4635,2628.8,2628.5,3.80443]
[1724363594294,0.0706911,2628.7,2628.5,3.80443]
[1724363594669,2.4635,2628.8,2628.5,3.80443]
[1724363594851,0.0706911,2628.6,2628.5,3.80443]
[1724363595056,2.4635,2628.8,2628.5,3.80443]
[1724363595252,2.4635,2628.8,2628.2,0.79047083]
[1724363595253,0.0706911,2628.6,2628.2,7.60958]
[1724363595487,3.80418,2628.7,2628.2,7.60958]
[1724363595488,3.80418,2628.7,2628.2,9.08357441]
[1724363595696,2.32436689,2628.5,2628.2,5.27877441]
[1724363595899,2.2542,2628.5,2628.2,3.80478]
[1724363596201,0.07016689,2628.4,2628.2,3.80478]
[1724363597771,2.2542,2628.3,2628.2,3.80478]
[1724363597954,2.2542,2628.3,2627.9,1.98479256]
[1724363598159,2.2542,2628.3,2627.8,0.79047083]
[1724363598160,2.3243255,2628.3,2628.0,3.80512]
[1724363598376,2.3243255,2628.3,2628.0,3.80514]
[1724363598571,2.3243255,2628.3,2628.2,3.80488]
[1724363599890,2.3243255,2628.3,2628.0,3.80514]
[1724363600084,2.3243255,2628.3,2627.9,3.80529]
[1724363601160,2.3243255,2628.3,2628.0,3.80512]
[1724363602558,2.3243255,2628.3,2627.9,3.80529]